fUST/lending_fUST_20250125
["ID","MTS","AMOUNT","RATE_DAILY","PERIOD"]
[350268714,1737753044239,-1297.192259,0.00019178,2]
[350268716,1737753044249,-500.0,0.00019178,2]
[350268718,1737753044258,-390.371146,0.00019178,2]
[350268720,1737753044268,-1297.192259,0.00019178,2]
[350268722,1737753044278,-1297.192259,0.00019178,2]
[350268724,1737753044289,-390.371146,0.00019178,2]
[350268726,1737753044298,-1297.192259,0.00019178,2]
[350268728,1737753044308,-500.0,0.00019178,2]
[350268730,1737753044318,-1297.192259,0.00019178,2]
[350268732,1737753044329,-390.371146,0.00019178,2]
[350268734,1737753044339,-500.0,0.00019178,2]
[350268736,1737753044348,-1297.192259,0.00019178,2]
[350268738,1737753044358,-390.371146,0.00019178,2]
[350268740,1737753044367,-1297.192259,0.00019178,2]
[350268742,1737753044376,-390.371146,0.00019178,2]
[350268744,1737753044387,-1297.192259,0.00019178,2]
[350268746,1737753044398,-390.371146,0.00019178,2]
[350268748,1737753044408,-1297.192259,0.00019178,2]
[350268750,1737753044421,-390.371146,0.00019178,2]
[350268752,1737753044433,-1297.192259,0.00019178,2]
[350268754,1737753044443,-390.371146,0.00019178,2]
[350268756,1737753044453,-1297.192259,0.00019178,2]
[350268758,1737753044463,-390.371146,0.00019178,2]
[350268760,1737753044473,-1297.192259,0.00019178,2]
[350268761,1737753044482,-390.371146,0.00019178,2]
[350268763,1737753044492,-1297.192263,0.00019178,2]
[350268765,1737753044503,-390.371146,0.00019178,2]
[350268767,1737753044514,-390.371146,0.00019178,2]
[350268770,1737753044526,-390.371146,0.00019178,2]
[350268771,1737753044535,-151.0,0.00019178,2]
[350268773,1737753044545,-390.371146,0.00019178,2]
[350268775,1737753044555,-151.0,0.00019178,2]
[350268777,1737753044564,-500.0,0.00019178,2]
[350268779,1737753044574,-500.0,0.00019178,2]
[350268781,1737753044582,-151.0,0.00019178,2]
[350268783,1737753044592,-500.0,0.00019178,2]
[350268785,1737753044610,-176.214326,0.00019178,2]
[350268787,1737753044620,-390.371146,0.00019178,2]
[350268789,1737753044629,-500.0,0.00019178,2]
[350268791,1737753044638,-390.371154,0.00019178,2]
[350268793,1737753044650,-500.0,0.00019178,2]
[350268795,1737753044659,-500.0,0.00019178,2]
[350268797,1737753044668,-491.16798417,0.00019178,2]
[350268800,1737753044688,-8.83201583,0.00019178,2]
[350268802,1737753044698,-500.0,0.00019178,2]
[350268804,1737753044707,-500.0,0.00019178,2]
[350268806,1737753044716,-500.0,0.00019178,2]
[350268808,1737753044726,-500.0,0.00019178,2]
[350268810,1737753044736,-150.61995815,0.00019178,2]
[350268812,1737753044745,-504.77345831,0.00019178,2]
[350268814,1737753044755,-875.27204919,0.00019178,2]
[350268816,1737753044765,-500.0,0.00019178,2]
[350268817,1737753044774,-4660.05253106,0.00019178,2]
[350268820,1737753044787,-3032.49746894,0.00019178,2]
[350268822,1737753044796,-500.0,0.00019178,2]
[350268824,1737753044806,-7692.55,0.00019178,2]
[350268826,1737753044816,-2519.89440564,0.00019178,2]
[350268853,1737753045255,-500.0,0.00019178,2]
[350268854,1737753045265,-670.0,0.00019178,2]
[350268855,1737753045277,-4099.62294706,0.00019178,2]
[350268856,1737753045290,-1392.13705294,0.00019178,2]
[350268857,1737753045300,-316.03775718,0.00019178,2]
[350268925,1737753046019,-183.96224282,0.00019178,2]
[350268927,1737753046030,-500.0,0.00019178,2]
[350268929,1737753046039,-328.006416,0.00019178,2]
[350268931,1737753046049,-328.006416,0.00019178,2]
[350268933,1737753046058,-328.006416,0.00019178,2]
[350268935,1737753046068,-500.0,0.00019178,2]
[350268937,1737753046077,-328.006416,0.00019178,2]
[350268939,1737753046087,-500.0,0.00019178,2]
[350268941,1737753046096,-328.006416,0.00019178,2]
[350268943,1737753046105,-328.006416,0.00019178,2]
[350268945,1737753046115,-500.0,0.00019178,2]
[350268947,1737753046125,-500.0,0.00019178,2]
[350268949,1737753046134,-328.006416,0.00019178,2]
[350268951,1737753046144,-281.99284518,0.00019178,2]
[350268954,1737753046157,-46.01357082,0.00019178,2]
[350268956,1737753046166,-328.006416,0.00019178,2]
[350268958,1737753046175,-328.006416,0.00019178,2]
[350268960,1737753046186,-328.006416,0.00019178,2]
[350268962,1737753046195,-500.0,0.00019178,2]
[350268964,1737753046204,-328.006416,0.00019178,2]
[350268966,1737753046214,-328.006416,0.00019178,2]
[350268968,1737753046223,-500.0,0.00019178,2]
[350268970,1737753046233,-328.006416,0.00019178,2]
[350268972,1737753046243,-328.006416,0.00019178,2]
[350268974,1737753046252,-328.006416,0.00019178,2]
[350268976,1737753046262,-328.006416,0.00019178,2]
[350268978,1737753046271,-328.006416,0.00019178,2]
[350268980,1737753046280,-500.0,0.00019178,2]
[350268981,1737753046289,-500.0,0.00019178,2]
[350268983,1737753046299,-328.006416,0.00019178,2]
[350268986,1737753046309,-815.057154,0.00019178,2]
[350268988,1737753046318,-328.006424,0.00019178,2]
[350268990,1737753046327,-815.057154,0.00019178,2]
[350268992,1737753046336,-500.0,0.00019178,2]
[350268994,1737753046345,-815.057154,0.00019178,2]
[350268996,1737753046355,-815.057154,0.00019178,2]
[350268998,1737753046365,-815.057154,0.00019178,2]
[350269000,1737753046374,-815.057154,0.00019178,2]
[350269002,1737753046384,-815.057154,0.00019178,2]
[350269004,1737753046393,-815.057154,0.00019178,2]
[350269006,1737753046403,-500.0,0.00019178,2]
[350269008,1737753046412,-815.057154,0.00019178,2]
[350269010,1737753046422,-815.057154,0.00019178,2]
[350269012,1737753046432,-382.63498747,0.00019178,2]
[350269014,1737753046444,-500.0,0.00019178,2]
[350269016,1737753046453,-815.057154,0.00019178,2]
[350269018,1737753046462,-815.057154,0.00019178,2]
[350269020,1737753046472,-815.057154,0.00019178,2]
[350269022,1737753046481,-615.97751609,0.00019178,2]
[350269286,1737753185633,234.096654,0.00013973,2]
[350269292,1737753678258,288.25873421,0.00017594,2]
[350269293,1737753778516,531.2054098,0.00017517,2]
[350269320,1737754095250,222.391821,0.00013973,2]
[350269321,1737754096641,4608.37267161,0.000125,2]
[350269373,1737754232394,-300.0,0.00018055,2]
[350269374,1737754232408,-10100.7722727,0.00018056,2]
[350269375,1737754232425,-500.0,0.00018068,2]
[350269376,1737754232439,-295.145982,0.00018115,2]
[350269377,1737754232454,-264.7,0.00018128,2]
[350269378,1737754232468,-350.931,0.0001822,2]
[350269379,1737754232483,-116336.10103308,0.00018234,2]
[350269380,1737754232497,-600.0,0.00018411,2]
[350269381,1737754232511,-152.0,0.0001857,2]
[350269382,1737754232526,-600.0,0.00018603,2]
[350269383,1737754232541,-772.16102542,0.00018794,2]
[350269384,1737754232555,-306.0,0.000188,2]
[350269387,1737754232571,-1204.13269709,0.000189,2]
[350269390,1737754232586,-153.0,0.00018904,2]
[350269392,1737754232600,-303.11517528,0.00019,2]
[350269395,1737754232616,-267.3373751,0.00019066,2]
[350269397,1737754232630,-267.33737509,0.00019069,2]
[350269400,1737754232644,-267.33737509,0.00019072,2]
[350269402,1737754232658,-157.76,0.00019072,2]
[350269405,1737754232675,-267.33737509,0.00019075,2]
[350269407,1737754232690,-267.33737509,0.00019078,2]
[350269410,1737754232704,-153.0,0.00019124,2]
[350269412,1737754232718,-153.0,0.00019128,2]
[350269415,1737754232732,-536.0,0.00019131,2]
[350269417,1737754232746,-2055.0,0.00019131,2]
[350269420,1737754232760,-2304.0,0.00019131,2]
[350269422,1737754232773,-153.0,0.00019132,2]
[350269425,1737754232787,-1200.0,0.00019134,2]
[350269427,1737754232801,-153.0,0.00019136,2]
[350269430,1737754232814,-217.14,0.00019155,3]
[350269432,1737754232826,-651.43,0.00019155,3]
[350269434,1737754232836,-260.57,0.00019156,3]
[350269436,1737754232845,-182.857,0.00019161,2]
[350269451,1737754232974,-151.0,0.00019164,2]
[350269454,1737754232993,-151.0,0.00019164,2]
[350269456,1737754233003,-151.0,0.00019164,2]
[350269458,1737754233013,-241.935512,0.00019164,2]
[350269460,1737754233023,-254.829401,0.00019165,2]
[350269462,1737754233032,-254.829401,0.00019165,2]
[350269464,1737754233041,-910.764874,0.00019165,2]
[350269466,1737754233052,-910.764874,0.00019165,2]
[350269468,1737754233061,-151.0,0.00019166,2]
[350269470,1737754233071,-254.471129,0.00019166,2]
[350269472,1737754233080,-254.471129,0.00019166,2]
[350269474,1737754233090,-254.471129,0.00019166,2]
[350269476,1737754233099,-254.471129,0.00019166,2]
[350269478,1737754233110,-151.0,0.00019166,2]
[350269480,1737754233120,-151.0,0.00019166,2]
[350269482,1737754233129,-151.0,0.00019166,2]
[350269484,1737754233139,-270.439317,0.00019166,2]
[350269486,1737754233148,-270.439317,0.00019166,2]
[350269488,1737754233158,-270.439317,0.00019166,2]
[350269490,1737754233169,-270.439317,0.00019166,2]
[350269492,1737754233181,-151.0,0.00019168,2]
[350269494,1737754233190,-151.0,0.00019168,2]
[350269496,1737754233200,-254.829401,0.00019168,2]
[350269498,1737754233209,-254.829401,0.00019168,2]
[350269500,1737754233220,-910.764874,0.00019168,2]
[350269502,1737754233229,-910.764874,0.00019168,2]
[350269504,1737754233240,-500.0,0.00019168,2]
[350269506,1737754233250,-500.0,0.00019168,2]
[350269509,1737754233260,-500.0,0.00019168,2]
[350269511,1737754233269,-500.0,0.00019168,2]
[350269513,1737754233279,-500.0,0.00019168,2]
[350269515,1737754233289,-500.0,0.00019168,2]
[350269517,1737754233298,-151.0,0.00019169,2]
[350269519,1737754233307,-500.0,0.00019169,2]
[350269521,1737754233316,-500.0,0.00019169,2]
[350269523,1737754233326,-224.79,0.00019169,2]
[350269525,1737754233335,-151.0,0.0001917,2]
[350269527,1737754233344,-500.0,0.00019173,2]
[350269529,1737754233354,-500.0,0.00019173,2]
[350269531,1737754233363,-416.99388129,0.00019173,2]
[350269533,1737754233374,-500.0,0.00019173,2]
[350269535,1737754233383,-500.67709918,0.00019173,2]
[350269537,1737754233393,-153.94405258,0.00019173,2]
[350269539,1737754233403,-267.06808751,0.00019173,2]
[350269541,1737754233413,-500.0,0.00019173,2]
[350269543,1737754233425,-187.76884539,0.00019173,2]
[350269545,1737754233435,-402.1077087,0.00019173,2]
[350269547,1737754233445,-500.0,0.00019173,2]
[350269549,1737754233454,-259.75032608,0.00019173,2]
[350269551,1737754233464,-477.58816749,0.00019173,2]
[350269553,1737754233474,-500.0,0.00019173,2]
[350269555,1737754233483,-500.0,0.00019173,2]
[350269557,1737754233492,-500.0,0.00019173,2]
[350269559,1737754233502,-500.0,0.00019173,2]
[350269561,1737754233511,-175.42990383,0.00019173,2]
[350269563,1737754233520,-162.58172366,0.00019173,2]
[350269565,1737754233530,-207.99231028,0.00019173,2]
[350269567,1737754233540,-538.96198717,0.00019173,2]
[350269569,1737754233551,-151.0,0.00019173,2]
[350269571,1737754233561,-160.0,0.00019177,2]
[350269573,1737754233571,-202.05859216,0.00019177,2]
[350269575,1737754233581,-22940.69103657,0.00019178,5]
[350269577,1737754233592,-500.0,0.00019178,2]
[350269579,1737754233602,-500.0,0.00019178,2]
[350269581,1737754233611,-500.0,0.00019178,2]
[350269583,1737754233621,-500.0,0.00019178,2]
[350269585,1737754233632,-1000.0,0.00019178,2]
[350269587,1737754233642,-500.0,0.00019178,2]
[350269589,1737754233651,-500.0,0.00019178,2]
[350269591,1737754233660,-576.2045807,0.00019178,2]
[350269593,1737754233672,-500.0,0.00019178,2]
[350269595,1737754233682,-500.0,0.00019178,2]
[350269597,1737754233691,-510.08316447,0.00019178,2]
[350269599,1737754233701,-518.32,0.00019178,2]
[350269601,1737754233711,-500.0,0.00019178,2]
[350269603,1737754233720,-500.0,0.00019178,2]
[350269605,1737754233730,-500.0,0.00019178,2]
[350269607,1737754233740,-500.0,0.00019178,2]
[350269609,1737754233749,-518.07954344,0.00019178,2]
[350269611,1737754233759,-500.0,0.00019178,2]
[350269613,1737754233768,-500.0,0.00019178,2]
[350269615,1737754233778,-503.09337898,0.00019178,2]
[350269617,1737754233787,-500.0,0.00019178,2]
[350269619,1737754233797,-500.0,0.00019178,2]
[350269621,1737754233806,-500.0,0.00019178,2]
[350269623,1737754233816,-500.0,0.00019178,2]
[350269625,1737754233827,-500.0,0.00019178,2]
[350269627,1737754233838,-500.0,0.00019178,2]
[350269629,1737754233848,-500.0,0.00019178,2]
[350269631,1737754233859,-500.0,0.00019178,2]
[350269633,1737754233870,-513.23760202,0.00019178,2]
[350269635,1737754233881,-500.0,0.00019178,2]
[350269637,1737754233891,-500.65336918,0.00019178,2]
[350269639,1737754233900,-500.0,0.00019178,2]
[350269641,1737754233910,-500.0,0.00019178,2]
[350269643,1737754233925,-500.0,0.00019178,2]
[350269645,1737754233936,-500.0,0.00019178,2]
[350269647,1737754233946,-500.0,0.00019178,2]
[350269649,1737754233956,-500.0,0.00019178,2]
[350269651,1737754233966,-500.0,0.00019178,2]
[350269653,1737754233978,-500.0,0.00019178,2]
[350269655,1737754233988,-292.24844763,0.00019178,2]
[350269657,1737754233997,-500.0,0.00019178,2]
[350269659,1737754234007,-500.0,0.00019178,2]
[350269661,1737754234016,-596.38994064,0.00019178,2]
[350269663,1737754234026,-500.0,0.00019178,2]
[350269665,1737754234036,-500.0,0.00019178,2]
[350269667,1737754234045,-500.0,0.00019178,2]
[350269669,1737754234055,-500.0,0.00019178,2]
[350269671,1737754234065,-500.0,0.00019178,2]
[350269673,1737754234075,-500.0,0.00019178,2]
[350269675,1737754234084,-500.0,0.00019178,2]
[350269677,1737754234093,-500.0,0.00019178,2]
[350269679,1737754234103,-500.0,0.00019178,2]
[350269681,1737754234112,-500.0,0.00019178,2]
[350269683,1737754234122,-500.0,0.00019178,2]
[350269685,1737754234132,-500.0,0.00019178,2]
[350269687,1737754234142,-500.0,0.00019178,2]
[350269689,1737754234152,-500.0,0.00019178,2]
[350269691,1737754234161,-500.0,0.00019178,2]
[350269693,1737754234175,-500.0,0.00019178,2]
[350269695,1737754234186,-500.0,0.00019178,2]
[350269697,1737754234195,-500.0,0.00019178,2]
[350269699,1737754234205,-500.0,0.00019178,2]
[350269701,1737754234214,-817.96,0.00019178,2]
[350269703,1737754234224,-522.8876488,0.00019178,2]
[350269705,1737754234235,-500.0,0.00019178,2]
[350269707,1737754234245,-500.0,0.00019178,2]
[350269709,1737754234255,-500.0,0.00019178,2]
[350269711,1737754234264,-500.0,0.00019178,2]
[350269713,1737754234274,-500.0,0.00019178,2]
[350269715,1737754234283,-200.0,0.00019178,2]
[350269717,1737754234292,-500.0,0.00019178,2]
[350269719,1737754234302,-500.0,0.00019178,2]
[350269721,1737754234312,-500.0,0.00019178,2]
[350269723,1737754234321,-500.0,0.00019178,2]
[350269725,1737754234331,-500.0,0.00019178,2]
[350269727,1737754234340,-500.0,0.00019178,2]
[350269729,1737754234350,-500.0,0.00019178,2]
[350269731,1737754234360,-500.0,0.00019178,2]
[350269733,1737754234369,-500.0,0.00019178,2]
[350269735,1737754234378,-500.0,0.00019178,2]
[350269737,1737754234388,-500.0,0.00019178,2]
[350269739,1737754234398,-500.0,0.00019178,2]
[350269741,1737754234407,-500.0,0.00019178,2]
[350269743,1737754234418,-500.0,0.00019178,2]
[350269745,1737754234428,-500.0,0.00019178,2]
[350269747,1737754234438,-506.60024814,0.00019178,2]
[350269749,1737754234447,-564.2755885,0.00019178,2]
[350269751,1737754234457,-500.0,0.00019178,2]
[350269753,1737754234467,-500.0,0.00019178,2]
[350269755,1737754234477,-500.0,0.00019178,2]
[350269757,1737754234486,-500.0,0.00019178,2]
[350269759,1737754234495,-500.0,0.00019178,2]
[350269761,1737754234505,-500.0,0.00019178,2]
[350269763,1737754234515,-500.0,0.00019178,2]
[350269765,1737754234525,-500.0,0.00019178,2]
[350269767,1737754234535,-502.81781194,0.00019178,2]
[350269769,1737754234544,-500.0,0.00019178,2]
[350269771,1737754234554,-499.75873317,0.00019178,2]
[350269773,1737754234563,-1100.02,0.00019178,2]
[350269775,1737754234572,-500.0,0.00019178,2]
[350269777,1737754234582,-500.0,0.00019178,2]
[350269779,1737754234592,-500.0,0.00019178,2]
[350269789,1737754234682,-500.0,0.00019178,2]
[350269791,1737754234691,-500.0,0.00019178,2]
[350269793,1737754234700,-500.0,0.00019178,2]
[350269795,1737754234709,-500.0,0.00019178,2]
[350269797,1737754234718,-500.0,0.00019178,2]
[350269799,1737754234727,-500.0,0.00019178,2]
[350269801,1737754234736,-500.0,0.00019178,2]
[350269803,1737754234745,-500.0,0.00019178,2]
[350269805,1737754234754,-500.0,0.00019178,2]
[350269807,1737754234763,-500.0,0.00019178,2]
[350269809,1737754234772,-500.0,0.00019178,2]
[350269811,1737754234781,-500.87600782,0.00019178,2]
[350269813,1737754234791,-500.0,0.00019178,2]
[350269815,1737754234800,-500.0,0.00019178,2]
[350269817,1737754234810,-500.0,0.00019178,2]
[350269819,1737754234820,-217.36903864,0.00019178,2]
[350269821,1737754234829,-500.0,0.00019178,2]
[350269823,1737754234838,-500.0,0.00019178,2]
[350269825,1737754234848,-500.0,0.00019178,2]
[350269827,1737754234857,-500.0,0.00019178,2]
[350269829,1737754234866,-253.34170156,0.00019178,2]
[350269831,1737754234876,-500.0,0.00019178,2]
[350269833,1737754234885,-500.0,0.00019178,2]
[350269835,1737754234895,-503.65862058,0.00019178,2]
[350269837,1737754234904,-500.0,0.00019178,2]
[350269839,1737754234913,-500.0,0.00019178,2]
[350269841,1737754234926,-500.0,0.00019178,2]
[350269843,1737754234935,-507.08845926,0.00019178,2]
[350269845,1737754234944,-785.1,0.00019178,2]
[350269847,1737754234953,-500.0,0.00019178,2]
[350269849,1737754234962,-500.0,0.00019178,2]
[350269851,1737754234973,-500.0,0.00019178,2]
[350269853,1737754234985,-500.0,0.00019178,2]
[350269855,1737754234994,-500.0,0.00019178,2]
[350269857,1737754235003,-500.0,0.00019178,2]
[350269859,1737754235013,-500.0,0.00019178,2]
[350269861,1737754235023,-500.0,0.00019178,2]
[350269863,1737754235032,-500.0,0.00019178,2]
[350269865,1737754235041,-500.0,0.00019178,2]
[350269868,1737754235051,-500.0,0.00019178,2]
[350269870,1737754235061,-500.0,0.00019178,2]
[350269871,1737754235070,-500.0,0.00019178,2]
[350269874,1737754235080,-500.0,0.00019178,2]
[350269875,1737754235089,-500.0,0.00019178,2]
[350269878,1737754235098,-500.0,0.00019178,2]
[350269879,1737754235107,-500.0,0.00019178,2]
[350269882,1737754235116,-500.0,0.00019178,2]
[350269883,1737754235125,-502.85297769,0.00019178,2]
[350269885,1737754235135,-500.0,0.00019178,2]
[350269887,1737754235144,-502.27763811,0.00019178,2]
[350269890,1737754235153,-500.0,0.00019178,2]
[350269891,1737754235162,-500.0,0.00019178,2]
[350269894,1737754235175,-502.61237339,0.00019178,2]
[350269895,1737754235185,-608.12536251,0.00019178,2]
[350269898,1737754235195,-2823.28,0.00019178,2]
[350269900,1737754235204,-500.0,0.00019178,2]
[350269901,1737754235213,-502.69162995,0.00019178,2]
[350269903,1737754235222,-500.0,0.00019178,2]
[350269905,1737754235232,-170.18919454,0.00019178,2]
[350269907,1737754235241,-500.0,0.00019178,2]
[350269910,1737754235251,-594.78,0.00019178,2]
[350269912,1737754235261,-500.0,0.00019178,2]
[350269914,1737754235270,-677.94,0.00019178,2]
[350269916,1737754235279,-500.0,0.00019178,2]
[350269918,1737754235288,-500.0,0.00019178,2]
[350269919,1737754235298,-500.0,0.00019178,2]
[350269921,1737754235307,-500.0,0.00019178,2]
[350269923,1737754235316,-371.39293169,0.00019178,2]
[350269925,1737754235326,-500.0,0.00019178,2]
[350269928,1737754235335,-500.0,0.00019178,2]
[350269930,1737754235345,-500.0,0.00019178,2]
[350269932,1737754235355,-500.0,0.00019178,2]
[350269934,1737754235365,-500.0,0.00019178,2]
[350269935,1737754235375,-500.0,0.00019178,2]
[350269938,1737754235385,-500.0,0.00019178,2]
[350269940,1737754235394,-502.6594227,0.00019178,2]
[350269942,1737754235404,-500.0,0.00019178,2]
[350269943,1737754235414,-874.46,0.00019178,2]
[350269946,1737754235431,-500.0,0.00019178,2]
[350269948,1737754235442,-500.0,0.00019178,2]
[350269950,1737754235452,-500.0,0.00019178,2]
[350269952,1737754235462,-500.0,0.00019178,2]
[350269954,1737754235471,-500.0,0.00019178,2]
[350269956,1737754235481,-500.0,0.00019178,2]
[350269958,1737754235491,-500.0,0.00019178,2]
[350269959,1737754235500,-500.0,0.00019178,2]
[350269961,1737754235510,-500.0,0.00019178,2]
[350269963,1737754235519,-437.68414253,0.00019178,2]
[350269966,1737754235529,-500.0,0.00019178,2]
[350269967,1737754235539,-151.0,0.00019178,2]
[350269970,1737754235548,-500.0,0.00019178,2]
[350269971,1737754235558,-500.0,0.00019178,2]
[350269974,1737754235567,-500.0,0.00019178,2]
[350269976,1737754235576,-500.0,0.00019178,2]
[350269978,1737754235586,-599.15,0.00019178,2]
[350269980,1737754235595,-500.0,0.00019178,2]
[350269982,1737754235605,-500.0,0.00019178,2]
[350269984,1737754235614,-500.0,0.00019178,2]
[350269986,1737754235624,-500.0,0.00019178,2]
[350269988,1737754235633,-500.0,0.00019178,2]
[350269990,1737754235642,-500.0,0.00019178,2]
[350269992,1737754235652,-500.0,0.00019178,2]
[350269994,1737754235661,-500.0,0.00019178,2]
[350269996,1737754235675,-500.0,0.00019178,2]
[350269998,1737754235684,-500.0,0.00019178,2]
[350270000,1737754235693,-500.0,0.00019178,2]
[350270002,1737754235703,-699.35,0.00019178,2]
[350270004,1737754235712,-500.0,0.00019178,2]
[350270006,1737754235721,-500.0,0.00019178,2]
[350270008,1737754235730,-503.47218634,0.00019178,2]
[350270010,1737754235739,-732.83,0.00019178,2]
[350270012,1737754235748,-500.0,0.00019178,2]
[350270014,1737754235759,-500.0,0.00019178,2]
[350270016,1737754235768,-500.0,0.00019178,2]
[350270018,1737754235777,-500.0,0.00019178,2]
[350270020,1737754235786,-500.0,0.00019178,2]
[350270022,1737754235796,-500.0,0.00019178,2]
[350270024,1737754235805,-500.0,0.00019178,2]
[350270026,1737754235815,-500.0,0.00019178,2]
[350270028,1737754235825,-500.0,0.00019178,2]
[350270030,1737754235835,-607.64,0.00019178,2]
[350270032,1737754235844,-614.32431529,0.00019178,2]
[350270034,1737754235854,-500.0,0.00019178,2]
[350270036,1737754235863,-500.0,0.00019178,2]
[350270038,1737754235872,-216.71115821,0.00019178,2]
[350270040,1737754235882,-500.0,0.00019178,2]
[350270042,1737754235891,-501.3637701,0.00019178,2]
[350270044,1737754235900,-500.0,0.00019178,2]
[350270046,1737754235910,-500.0,0.00019178,2]
[350270048,1737754235923,-500.0,0.00019178,2]
[350270050,1737754235932,-504.00427885,0.00019178,2]
[350270052,1737754235941,-500.0,0.00019178,2]
[350270054,1737754235951,-500.0,0.00019178,2]
[350270056,1737754235960,-500.0,0.00019178,2]
[350270057,1737754235973,-744.67,0.00019178,2]
[350270058,1737754235982,-500.0,0.00019178,2]
[350270059,1737754235991,-500.0,0.00019178,2]
[350270060,1737754236001,-500.0,0.00019178,2]
[350270061,1737754236011,-500.0,0.00019178,2]
[350270062,1737754236020,-500.0,0.00019178,2]
[350270063,1737754236030,-500.0,0.00019178,2]
[350270064,1737754236039,-556.37847223,0.00019178,2]
[350270065,1737754236051,-500.0,0.00019178,2]
[350270066,1737754236060,-500.0,0.00019178,2]
[350270067,1737754236070,-500.0,0.00019178,2]
[350270068,1737754236079,-500.0,0.00019178,2]
[350270069,1737754236089,-500.0,0.00019178,2]
[350270071,1737754236098,-500.0,0.00019178,2]
[350270073,1737754236107,-500.0,0.00019178,2]
[350270075,1737754236116,-500.0,0.00019178,2]
[350270084,1737754236196,-500.0,0.00019178,2]
[350270086,1737754236206,-500.0,0.00019178,2]
[350270088,1737754236215,-500.0,0.00019178,2]
[350270090,1737754236225,-634.95,0.00019178,2]
[350270092,1737754236234,-919.87,0.00019178,2]
[350270094,1737754236243,-500.0,0.00019178,2]
[350270096,1737754236253,-645.57948154,0.00019178,2]
[350270098,1737754236262,-642.16,0.00019178,2]
[350270100,1737754236272,-500.0,0.00019178,2]
[350270102,1737754236281,-570.31,0.00019178,2]
[350270104,1737754236290,-1536.54,0.00019178,2]
[350270106,1737754236299,-500.0,0.00019178,2]
[350270108,1737754236308,-500.0,0.00019178,2]
[350270110,1737754236317,-500.0,0.00019178,2]
[350270112,1737754236327,-500.0,0.00019178,2]
[350270114,1737754236336,-505.1433936,0.00019178,2]
[350270116,1737754236345,-500.0,0.00019178,2]
[350270118,1737754236355,-500.0,0.00019178,2]
[350270120,1737754236365,-500.0,0.00019178,2]
[350270122,1737754236374,-500.0,0.00019178,2]
[350270124,1737754236384,-500.0,0.00019178,2]
[350270126,1737754236393,-500.0,0.00019178,2]
[350270128,1737754236403,-1486.38,0.00019178,2]
[350270130,1737754236412,-500.0,0.00019178,2]
[350270132,1737754236426,-500.0,0.00019178,2]
[350270134,1737754236435,-500.0,0.00019178,2]
[350270136,1737754236445,-500.0,0.00019178,2]
[350270138,1737754236455,-500.0,0.00019178,2]
[350270140,1737754236464,-500.0,0.00019178,2]
[350270142,1737754236474,-500.0,0.00019178,2]
[350270144,1737754236483,-500.0,0.00019178,2]
[350270146,1737754236493,-500.0,0.00019178,2]
[350270148,1737754236502,-539.47,0.00019178,2]
[350270150,1737754236512,-500.0,0.00019178,2]
[350270152,1737754236522,-500.0,0.00019178,2]
[350270154,1737754236532,-500.0,0.00019178,2]
[350270156,1737754236542,-500.0,0.00019178,2]